Cogmind - Beta 13 @@@ ROGUE MODE // 2024.04.13 @ 19:00:26 Player: Bearly Playable Result: Self-destructed Performance ------------- Evolutions (1) 500 Regions Visited (2) 400 Robots Destroyed (15) 75 Value Destroyed (340) 340 Prototype IDs (2) 40 Alien Tech Used (0) 0 Bonus (0) 0 TOTAL SCORE: 1355 Bonus ------- None Cogmind --------- Core Integrity 301/400 Matter 274/300 Energy 125/250 System Corruption 0% Temperature Hot (233) Movement Flying (110) Ox1 Location -9/Materials Parts ------- > --- POWER (1) -------- Ion Engine > --- PROPULSION (4) --- Flight Unit VTOL Module VTOL Module > --- UTILITY (2) ------ Small Storage Unit Visual Processing Unit > --- WEAPON (2) ------- Pulse Rifle Pulse Rifle > --- INVENTORY (8) ---- Light Ion Engine Sensor Array Targeting Computer Pulse Rifle Light EM Pulse Cannon Light EM Pulse Cannon Improved Datajack Peak State ------------ > --- POWER ------------ Light Ion Engine > --- PROPULSION ------- VTOL Module VTOL Module VTOL Module VTOL Module > --- UTILITY ---------- Small Storage Unit Visual Processing Unit > --- WEAPON ----------- Pulse Rifle Pulse Rifle > --- INVENTORY -------- Ion Engine Sensor Array Targeting Computer Light EM Pulse Cannon Light EM Pulse Cannon Light Assault Rifle Improved Datajack [Rating: 19] Favorites ----------- Power Ion Engine Engine Ion Engine Propulsion VTOL Module Leg Aluminum Leg Hover Unit Hover Unit Flight Unit VTOL Module Utility Small Storage Unit Storage Small Storage Unit Processor Visual Processing Unit Weapon EM Pulse Gun Energy Gun EM Pulse Gun Energy Cannon Light EM Pulse Cannon Ballistic Gun Light Assault Rifle Launcher Grenade Launcher Build | -11 -10 -9 ------- Run | Yrd Mat Mat Slots Evolved 2 | . . 2 Power . | . . . Propulsion 2 | . . 2 Utility . | . . . Weapon . | . . . Parts Attached 25 | 6 10 9 Power 3 | 1 1 1 Engine 3 | 1 1 1 Core . | . . . Reactor . | . . . Propulsion 10 | 2 5 3 Treads . | . . . Leg 2 | 2 . . Wheel . | . . . Hover 3 | . 3 . Flight 5 | . 2 3 Utility 2 | 1 1 . Device . | . . . Storage 1 | 1 . . Processor 1 | . 1 . Hackware . | . . . Protection . | . . . Artifact . | . . . Weapon 10 | 2 3 5 Energy Gun 5 | 1 1 3 Energy Cannon 2 | . . 2 Ballistic Gun 2 | 1 1 . Ballistic Cannon . | . . . Launcher 1 | . 1 . Special Weapon . | . . . Impact Weapon . | . . . Slashing Weapon . | . . . Piercing Weapon . | . . . Special Melee Weapon . | . . . Unidentified Prototypes . | . . . Parts Lost 3 | . 1 2 Power . | . . . Propulsion 2 | . . 2 Utility . | . . . Weapon 1 | . 1 . Highest Loss Streak 2 | . 1 2 To Critical Strikes . | . . . Average Slot Usage (%) 90 | . 86 98 Engine 13 | . 14 11 Leg 14 | . 21 . Hover 3 | . 4 . Flight 14 | . 1 42 Storage 13 | . 14 11 Processor 5 | . 2 11 Energy Gun 17 | . 16 20 Launcher 6 | . 9 . Naked Turns . | . . . Heaviest Build 16 | 13 15 16 Greatest Support 20 | 20 20 16 Greatest Overweight (x) 2 | . 2 1 Average Overweight (x) . | . . . Largest Inventory Capacity 8 | 8 8 8 Average Capacity 7 | 6 8 8 Most Carried 8 | 3 8 8 Average Carried 6 | 1 6 7 Final Capacity 8 | 8 8 8 Final Carried 8 | 2 8 7 Class Distribution -------------------- 74% | Mutant 25% | Sprinter Dominant Class ---------------- Mutant | -10/Materials Sprinter | -9/Materials Resources | -11 -10 -9 ----------- Run | Yrd Mat Mat Matter Collected 505 | 198 158 149 Remotely . | . . . Salvage Created 462 | . 286 176 Parts 26 | . 15 11 Haulers Intercepted . | . . . Recyclers Shooed 1 | . 1 . Parts Field Recycled . | . . . Retrieved Matter . | . . . Parts Self-Destructed . | . . . Prevented . | . . . Kills | -11 -10 -9 ------- Run | Yrd Mat Mat Combat Hostiles Destroyed 9 | . 5 4 Guns 7 | . 3 4 AOE 1 | . 1 . Classes Destroyed 6 | . 4 2 Worker 1 | . 1 . Builder 1 | . 1 . Recycler 1 | . . 1 Watcher 3 | . 2 1 Swarmer 3 | . . 3 Grunt 6 | . 5 1 Best Kill Streak 3 | . 3 2 Combat Bots Only 2 | . 2 2 Max Kills in Single Turn 1 | . 1 1 Gunslinging . | . . . Exploded 1 | . 1 . Melee . | . . . Uniques/NPCs Destroyed . | . . . Combat | -11 -10 -9 -------- Run | Yrd Mat Mat Hostile Shots Fired 65 | . 31 34 Missed 13 | . 5 8 Damage Taken 585 | . 335 250 Core 221 | . 122 99 Absorbed by Shields . | . . . Core Remaining (%) 75 | 100 51 . Volleys Fired 63 | . 42 21 Largest 2 | . 2 2 Hottest 126 | . 80 126 Shots Fired 94 | . 56 38 Gun 85 | . 47 38 Cannon . | . . . Launcher 9 | . 9 . Special . | . . . Kinetic . | . . . Thermal 38 | . . 38 Explosive 9 | . 9 . Electromagnetic 47 | . 47 . Robot Hit Streak 5 | . 5 4 Robot Miss Streak 5 | . 5 4 Penetration Max . | . . . Secondary Targets . | . . . Shots Hit Robots 41 | . 23 18 Core Hits 21 | . 15 6 Critical Kills . | . . . Critical Parts Destroyed . | . . . Critical Strikes 2 | . . 2 Burn 2 | . . 2 Melee Attacks . | . . . Impact . | . . . Slashing . | . . . Piercing . | . . . Sneak Attacks . | . . . Combat Hostiles . | . . . Follow-up Attacks . | . . . Damage Inflicted 1074 | . 752 322 Guns 666 | . 344 322 Cannons . | . . . Explosions 392 | . 392 . Melee . | . . . Ramming 16 | . 16 . Kinetic . | . . . Thermal 426 | . 104 322 Explosive 288 | . 288 . Electromagnetic 344 | . 344 . Impact . | . . . Slashing . | . . . Piercing . | . . . Highest Corruption . | . . . Average Corruption . | . . . Corruption Purged . | . . . Corruption Blocked . | . . . Overload Shots . | . . . Overflow Damage 20 | . 20 . Projectiles . | . . . Explosions 20 | . 20 . Melee . | . . . Knockbacks 1 | . 1 . Impact 1 | . 1 . Kinetic . | . . . Secondary . | . . . Self-Inflicted Damage . | . . . Shots . | . . . Rammed . | . . . Targets Rammed 6 | . 6 . Kicked 6 | . 6 . Crushed . | . . . Highest Temperature 480 | . 74 480 Average Temperature 119 | . 33 175 Received Heat Transfer 258 | . 189 69 Effects 8 | . . 8 Shutdowns 1 | . . 1 Interference 2 | . . 2 Matter Decay 1 | . . 1 Short Circuit 2 | . . 2 Damage (minor) 2 | . . 2 Siege Activations . | . . . Robots Corrupted 1 | . 1 . Combat Hostiles 1 | . 1 . Parts Fried 3 | . 3 . Impact Corruptions . | . . . Robots Melted . | . . . Combat Hostiles . | . . . Parts Melted 3 | . . 3 Heat Transferred 951 | . 100 851 Parts Sabotaged . | . . . Parts Stolen . | . . . Parts Stripped . | . . . Power Chain Reactions 3 | . 3 . Alert | -11 -10 -9 ------- Run | Yrd Mat Mat Peak Influence 349 | . 225 349 Initial 31 | . . 31 Average 99 | . 78 179 Maximum Alert Level 1 | . 1 1 Low Security (%) 84 | 100 95 52 Level 1 15 | . 4 47 Level 2 . | . . . Level 3 . | . . . Level 4 . | . . . Level 5 . | . . . High Security . | . . . Max Security . | . . . Squads Dispatched 4 | . 1 3 Investigation 1 | . . 1 Extermination . | . . . Reinforcement 3 | . 1 2 Assault . | . . . Garrison . | . . . Intercept . | . . . Searches Triggered . | . . . Construction Impeded . | . . . Haulers Reinforced . | . . . Active Scanning Responses . | . . . Cargo Convoy Interrupts . | . . . Stealth | -11 -10 -9 --------- Run | Yrd Mat Mat Distress Signals 3 | . 1 2 Communications Jammed . | . . . Distress Signals . | . . . Times Spotted 31 | . 10 21 Peak Tracking Total 10 | . 3 10 Tactical Retreats 2 | . . 2 Traps | -11 -10 -9 ------- Run | Yrd Mat Mat Traps Triggered . | . . . Indirectly . | . . . Trap Hack Attempts . | . . . Triggered . | . . . Disarmed . | . . . Reprogrammed . | . . . Reused . | . . . Traps Extracted . | . . . Installed . | . . . Triggered . | . . . Machines | -11 -10 -9 ---------- Run | Yrd Mat Mat Machines Disabled 2 | . . 2 Max in Single Turn 1 | . . 1 Machines Repaired . | . . . Machines Dismantled . | . . . Machines Sabotaged . | . . . Overloaded Fab Kills . | . . . Hacking | -11 -10 -9 --------- Run | Yrd Mat Mat Machines Accessed 8 | . 5 3 Terminals 8 | . 5 3 Fabricators . | . . . Repair Stations . | . . . Recycling Units . | . . . Scanalyzers . | . . . Garrison Access . | . . . Total Hacks 24 | . 14 10 Successful 15 | . 9 6 Failed 9 | . 5 4 Catastrophic 1 | . 1 . Database Lockouts . | . . . Manual . | . . . Terminals 24 | . 14 10 Fabricators . | . . . Repair Stations . | . . . Recycling Units . | . . . Scanalyzers . | . . . Garrison Access . | . . . Terminal Hacks 15 | . 9 6 Record 3 | . 1 2 Robot Analysis 2 | . 2 . Prototype ID Bank 1 | . 1 . Emergency Access Points 1 | . . 1 Alert Level 1 | . 1 . Locate Traps 2 | . 1 1 Investigation Status 1 | . 1 . Recall Investigation 3 | . 1 2 Hauler Manifests 1 | . 1 . Fabricator Hacks . | . . . Repair Station Hacks . | . . . Recycling Unit Hacks . | . . . Scanalyzer . | . . . Garrison Access Hacks . | . . . Unauthorized Hacks . | . . . Terminals . | . . . Fabricators . | . . . Repair Stations . | . . . Recycling Units . | . . . Scanalyzers . | . . . Garrison Access . | . . . Data Cores Recovered . | . . . Used . | . . . Hacking Detections 4 | . 1 3 Full Trace Events 2 | . 1 1 Feedback Events . | . . . Feedback Blocked . | . . . Robot Schematics Acquired . | . . . Robots Built . | . . . Authchips . | . . . Time . | . . . Total Robot Build Rating . | . . . Part Schematics Acquired . | . . . Parts Built . | . . . Authchips . | . . . Time . | . . . Total Part Build Rating . | . . . Parts Repaired . | . . . Time . | . . . Parts Recycled . | . . . Recycled Matter . | . . . Retrieved Matter . | . . . Retrieved Components . | . . . Parts Scanalyzed . | . . . Part Schematics Acquired . | . . . Parts Damaged . | . . . Bothacking | -11 -10 -9 ------------ Run | Yrd Mat Mat Used RIF Installer . | . . . Robots Hacked . | . . . Non-combat . | . . . Combat . | . . . Robot Hacks Applied . | . . . Relay Couplers Released . | . . . Fabnet Peak Effective % . | . . . Robots Rewired . | . . . Allies Hacked . | . . . Hacks Repelled . | . . . Allies | -11 -10 -9 -------- Run | Yrd Mat Mat Total Allies . | . . . Largest Group . | . . . Highest-Rated Group . | . . . Highest-Rated Ally . | . . . Total Orders . | . . . Ally Attacks . | . . . Total Damage . | . . . Kills . | . . . Allies Corrupted . | . . . Allies Melted . | . . . Intel | -11 -10 -9 ------- Run | Yrd Mat Mat Robot Analysis Total 2 | . 2 . Derelict Logs Recovered . | . . . Drone Launches . | . . . Drone Recoveries . | . . . Exploration | -11 -10 -9 ------------- Run | Yrd Mat Mat Turns Passed 841 | 78 530 233 Spaces Moved 881 | 61 374 446 Core 8 | 8 . . Treads . | . . . Legs 303 | 53 250 . Wheels . | . . . Hover 95 | . 95 . Flight 475 | . 29 446 Fastest Speed 26 | 50 56 26 Average Speed 65 | 110 103 26 Slowest Speed 195 | 120 195 110 Overloaded Moves . | . . . Propulsion Burnouts . | . . . Robots Hopped 11 | . . 11 Cave-ins Triggered . | . . . Exploration Rate (%) 23 | 5 42 23 Regions Visited 2 Branch Regions . Pre-discovered Areas . | . . . Known Exits Taken . | . . . Unknown Exits Taken 2 | 1 1 . Scrap Searched . | . . . Spaces Dug . | . . . Terrain Destroyed 73 | . 73 . Melee . | . . . Projectile . | . . . AOE 73 | . 73 . Terrain Rammed . | . . . Walls Destroyed . | . . . Machines Disabled . | . . . Actions | -11 -10 -9 --------- Run | Yrd Mat Mat Total 1042 | 69 462 511 Wait 40 | . 8 32 Move 859 | 60 373 426 Hop 9 | . . 9 Pick Up 24 | 3 13 8 Fast Attach 8 | 5 3 . Attach 8 | 1 3 4 Detach 1 | . 1 . Swap 9 | . 4 5 Drop 15 | . 9 6 Fire 63 | . 42 21 Melee . | . . . Ram . | . . . Kick 6 | . 6 . Crush . | . . . Escape Stasis . | . . . Rewire . | . . . Trap . | . . . Miscellaneous . | . . . Route ------- -11/Scrapyard -10/Materials -9/Materials History --------- Turn | Location | Event 10 | -11/Scrapyard | Discovered new exit (range 16) 79 | -11/Scrapyard | Entered Materials 301 | -10/Materials | Build established: Mutant 525 | -10/Materials | Discovered new exit (range 18) 609 | -10/Materials | Entered another Materials area 609 | -9/Materials | Evolved 2 slots: Propulsion x2 842 | -9/Materials | Self-destructed Last Messages --------------- 00773_ O-16 Technician: "IFF HANDSHAKE FAILED. SECURING TERMINAL." 00774_ O-16 Technician sends out distress signal. 00775_ K-01 Serf destroyed. 00779_ ALERT: Hostiles spotted, dispatching reinforcements to Terminal M002. 00791_ Acquired 3 matter. 00791_ Acquired 17 matter. 00791_ Acquired 4 matter. 00811_ Terminal unresponsive. 00821_ Terminal disabled. 00823_ VTOL Module destroyed. 00826_ G-34 Mercenary suffers critical hit (Burn). 00829_ G-34 Mercenary heat damages Aluminum Leg. 00829_ Heat Sink melted. 00829_ Ion Engine melted. 00829_ G-34 Mercenary destroyed. 00834_ W-16 Scout sends out distress signal. 00835_ Acquired 31 matter. 00838_ VTOL Module destroyed. 00838_ Critical hit (Burn: +37). Map ----- +----------------------------------------------------+ | ???????????????????????????????????????????? | | ???????????????????????????????????????????? | | ???????????????????????????????????????????? | | ???????????????????????????????????????????? | | ???????????????????????????????????????????? | | ???????????????????????????????????????????? | | ???????????????????????????????????????????? | | ??????????????????????????????????^????????? | | ???????????????????????????????????????????? | | ?????????????????????????????????????????^?? | | ?????????????????????????????????????????^?? | | ???????????????????????????????????????????? | | ?????????????????????????##???????^????????? | | ??????????????????????### ##???????????????? | | ??????????????????# """ #?????????????^?? | | ??????????????????# "T" #??????^?^??^???? | | ??????????????????# #???????????????? | | ???????????######## [#???????????????? | | ???????????# # #???????????????? | | ????######## # """ #???????^ ?^?^?? | | ????# |# # """ #?????^? ^^???? | | ????# # # """ #??????? ^ ^??? | | ????# # # #?????"" ???? | | ????# # #####;####????#"T ??? | | ????# ###+##+### ###+###"" ?? | | ????# #?# @ ]s s g ?? | | ????#####+#### w [ s w ?? | | ?????# k s Y a #????? | | ?????# ##+###### #### ####### #????? | | ????## ## # #??#######?????# #????? | | ????# # [ # #??????????????# #????? | | ????# T # "" # #??????????????# #????? | | ????# # "T # #??????????????# #????? | | ###### ## "" # #??????????????# #????? | | # # ## # #??????????????# = #????? | | # # #####+### #########+###### !% #????? | | # + #????? | | # # ###### | | # # [ | | # # #####+###########+################# | | # # # ! #???# #????????????# | | # # # [ #???# ] #?????????#### | | # # # %#???# #?????????# | | ###### # """"% ##### / #?????????# | | ?????# # """"""" + + #?????????# | | ?????# # """"""" ##### #?????????# | | ?????# # """"""" #???########?????????# | | ?????# # """"""" #????????????????????# | | ?????# =###########????????????????????#### | | ?????# *=[** #?????????????????????????????? | +----------------------------------------------------+ Best States ------------- Heat Dissipation 28 Energy Generation 10 Energy Capacity 250 Matter Stores 300 Matter Capacity 300 Sight Range 18 Terrain Scan Density 10 Evasion (%) 64 Item Schematics ----------------- None Robot Schematics ------------------ None Fabricated ------------ Nothing Alien Tech Used ----------------- None Achievements -------------- GoHome() Challenges ------------ None Game ------ Seed VisualPrecisionClaymores Manual? 0 Play Time 00:18:51 Cumulative 6.4 hours Start 2024.04.13 @ 18:39:29 End 2024.04.13 @ 19:00:26 Sessions 1 Manual Loads 0 Difficulty Rogue Special Mode None Game No. 18 Rogue 18 Adventurer 0 Explorer 0 Win Type - Total 0 Types 0/0/0/0/0/0/0/0/0 Lore% 5 Gallery% 9 Achievement% 10 Wizard Run 0 Options --------- Layout 1 ASCII 0 Keyboard 0 Movement Arrows Keybinds 0 Fullscreen 1 Font 32/SmallcapsGlow Map View 77x35 Zoom Use 0% Tactical HUD 1 Map Filters NONE Filters NONE Steam 1 RUN: 0f380fc7-d2ad-48b5-be41-771224510283